fUST/lending_fUST_20251017
["ID","MTS","AMOUNT","RATE_DAILY","PERIOD"]
[391540936,1760640640010,-500.0,0.00041333,31]
[391540937,1760640640020,-500.0,0.00041333,31]
[391540938,1760640640030,-500.0,0.00041333,31]
[391540939,1760640640040,-500.0,0.00041333,31]
[391540940,1760640640056,-113278.54621949,0.00041334,7]
[391540941,1760640640068,-1999.0,0.00041343,120]
[391540942,1760640640078,-269.1051234,0.00041419,31]
[391540943,1760640640091,-593.6806601,0.00041419,31]
[391540944,1760640640102,-56588.4198877,0.0004142,3]
[391540945,1760640640113,-113176.839775,0.00041434,3]
[391540946,1760640640122,-63022.7758,0.00041444,7]
[391540947,1760640640131,-200.0,0.00041444,20]
[391540948,1760640640141,-178.173409,0.00041444,20]
[391540950,1760640640151,-500.0,0.00041473,10]
[391540952,1760640640161,-500.0,0.00041473,2]
[391540954,1760640640170,-500.0,0.00041473,10]
[391540956,1760640640180,-1378.750634,0.00041611,2]
[391540958,1760640640190,-215.94138549,0.00041784,28]
[391540960,1760640640200,-1378.750634,0.00041876,2]
[391540961,1760640640209,-512.6437859,0.00041922,2]
[391540962,1760640640219,-1987.08687264,0.00041922,2]
[391540963,1760640640231,-113176.839775,0.0004198,3]
[391540965,1760640640240,-100000.0,0.0004199,2]
[391540967,1760640640250,-181.27775221,0.00042021,10]
[391540969,1760640640259,-1000.0,0.00042021,2]
[391540970,1760640640268,-625.88440353,0.00042021,10]
[391540972,1760640640279,-1378.750634,0.00042046,2]
[391540974,1760640640289,-1378.750634,0.00042307,2]
[391540976,1760640640298,-56588.4198877,0.0004232,3]
[391540978,1760640640308,-168.0,0.00042326,2]
[391540980,1760640640317,-168.0,0.00042443,2]
[391540982,1760640640326,-151.0,0.000425,14]
[391540984,1760640640336,-1378.75063411,0.00042551,2]
[391540986,1760640640345,-537.05869976,0.00042568,2]
[391540988,1760640640354,-151.0,0.000426,14]
[391540990,1760640640364,-290.27193026,0.00042706,22]
[391540992,1760640640373,-1999.0,0.00042713,120]
[391540993,1760640640382,-1102.86,0.000428,7]
[391540995,1760640640392,-1952.16,0.000428,30]
[391540997,1760640640402,-151.0,0.000428,15]
[391540999,1760640640411,-340.7698563,0.00042829,2]
[391541001,1760640640421,-501.21425316,0.00042873,10]
[391541003,1760640640430,-500.23894583,0.00042873,4]
[391541005,1760640640439,-634.87926624,0.00042873,10]
[391541007,1760640640448,-1152.9411,0.0004289,120]
[391541009,1760640640457,-1152.9411,0.0004289,120]
[391541011,1760640640467,-1152.9411,0.0004289,120]
[391541013,1760640640480,-1152.9411,0.0004289,120]
[391541015,1760640640489,-151.0,0.0004289,120]
[391541017,1760640640498,-151.0,0.0004289,120]
[391541019,1760640640507,-151.0,0.0004289,120]
[391541021,1760640640517,-151.0,0.0004289,120]
[391541034,1760640640526,-151.0,0.0004289,120]
[391541036,1760640640631,-276.673408,0.0004289,120]
[391541038,1760640640641,-370000.0,0.0004289,2]
[391541040,1760640640650,-177.64477798,0.00042912,17]
[391541042,1760640640659,-242.8442746,0.00042916,2]
[391541044,1760640640668,-4789.2229811,0.00042916,2]
[391541046,1760640640677,-3127.93,0.00042946,2]
[391541048,1760640640686,-1000.0,0.00042969,2]
[391541050,1760640640695,-151.0,0.00042969,2]
[391541051,1760640640704,-1000.0,0.00042969,2]
[391541053,1760640640714,-151.0,0.00042969,2]
[391541056,1760640640724,-1000.0,0.00042969,2]
[391541057,1760640640733,-151.0,0.00042969,2]
[391541059,1760640640742,-1000.0,0.00042969,2]
[391541061,1760640640752,-151.0,0.00042969,2]
[391541063,1760640640760,-1000.0,0.00042969,2]
[391541065,1760640640770,-151.0,0.00042969,2]
[391541067,1760640640779,-1000.0,0.00042969,2]
[391541069,1760640640788,-151.0,0.00042969,2]
[391541071,1760640640798,-1000.0,0.00042969,2]
[391541073,1760640640808,-1000.0,0.00042969,2]
[391541076,1760640640818,-1000.0,0.00042969,2]
[391541079,1760640640827,-1000.0,0.00042969,2]
[391541082,1760640640836,-1000.0,0.00042969,2]
[391541085,1760640640846,-1000.0,0.00042969,2]
[391541088,1760640640855,-1000.0,0.00042969,2]
[391541091,1760640640865,-1000.0,0.00042969,2]
[391541093,1760640640874,-1000.0,0.00042969,2]
[391541095,1760640640883,-1000.0,0.00042969,2]
[391541097,1760640640892,-1000.0,0.00042969,2]
[391541099,1760640640902,-1000.0,0.00042969,2]
[391541101,1760640640911,-1000.0,0.00042969,2]
[391541104,1760640640922,-1098.2,0.00042969,2]
[391541106,1760640640932,-30097.3917017,0.0004299,120]
[391541108,1760640640942,-151.0,0.00042999,120]
[391541109,1760640640951,-250.0,0.00042999,120]
[391541111,1760640640960,-250.0,0.00042999,120]
[391541113,1760640640969,-151.0,0.00042999,120]
[391541115,1760640640981,-250.0,0.00042999,120]
[391541117,1760640640991,-250.0,0.00042999,120]
[391541119,1760640641000,-250.0,0.00042999,120]
[391541121,1760640641013,-250.0,0.00042999,120]
[391541123,1760640641024,-250.0,0.00042999,120]
[391541125,1760640641034,-250.0,0.00042999,120]
[391541127,1760640641043,-2618.96571557,0.00042999,30]
[391541128,1760640641054,-250.0,0.00042999,120]
[391541129,1760640641063,-250.0,0.00042999,120]
[391541130,1760640641073,-250.0,0.00042999,120]
[391541131,1760640641082,-250.0,0.00042999,120]
[391541132,1760640641092,-250.0,0.00042999,120]
[391541133,1760640641101,-1888.0,0.00042999,30]
[391541134,1760640641110,-250.0,0.00042999,120]
[391541135,1760640641120,-250.0,0.00042999,120]
[391541136,1760640641130,-1957.856,0.00042999,30]
[391541137,1760640641140,-250.0,0.00042999,120]
[391541138,1760640641149,-250.0,0.00042999,120]
[391541139,1760640641159,-1325.29478779,0.00042999,30]
[391541140,1760640641170,-250.0,0.00042999,120]
[391541141,1760640641180,-250.0,0.00042999,120]
[391541142,1760640641190,-250.0,0.00042999,120]
[391541143,1760640641200,-250.0,0.00042999,120]
[391541144,1760640641210,-250.0,0.00042999,120]
[391541145,1760640641220,-250.0,0.00042999,120]
[391541146,1760640641231,-250.0,0.00042999,120]
[391541147,1760640641240,-250.0,0.00042999,120]
[391541148,1760640641250,-151.0,0.00042999,120]
[391541149,1760640641259,-250.0,0.00042999,120]
[391541150,1760640641269,-250.0,0.00042999,120]
[391541151,1760640641278,-250.0,0.00042999,120]
[391541152,1760640641288,-151.0,0.00042999,120]
[391541153,1760640641302,-250.0,0.00042999,120]
[391541154,1760640641312,-250.0,0.00042999,120]
[391541155,1760640641324,-250.0,0.00042999,120]
[391541156,1760640641333,-151.0,0.00042999,120]
[391541157,1760640641342,-250.0,0.00042999,120]
[391541158,1760640641352,-250.0,0.00042999,120]
[391541159,1760640641362,-250.0,0.00042999,120]
[391541160,1760640641372,-151.0,0.00042999,120]
[391541161,1760640641381,-250.0,0.00042999,120]
[391541163,1760640641391,-250.0,0.00042999,120]
[391541165,1760640641401,-250.0,0.00042999,120]
[391541167,1760640641410,-151.0,0.00042999,120]
[391541169,1760640641420,-250.0,0.00042999,120]
[391541171,1760640641429,-250.0,0.00042999,120]
[391541173,1760640641438,-250.0,0.00042999,120]
[391541175,1760640641447,-157.77191756,0.00042999,120]
[391541177,1760640641456,-250.0,0.00042999,120]
[391541179,1760640641465,-250.0,0.00042999,120]
[391541181,1760640641476,-250.0,0.00042999,120]
[391541183,1760640641485,-250.0,0.00042999,120]
[391541185,1760640641494,-250.0,0.00042999,120]
[391541187,1760640641503,-250.0,0.00042999,120]
[391541188,1760640641512,-250.0,0.00042999,120]
[391541190,1760640641521,-250.0,0.00042999,120]
[391541192,1760640641531,-250.0,0.00042999,120]
[391541194,1760640641540,-250.0,0.00042999,120]
[391541196,1760640641550,-151.0,0.00042999,120]
[391541198,1760640641559,-250.0,0.00042999,120]
[391541200,1760640641568,-263.37743979,0.00042999,120]
[391541202,1760640641578,-250.0,0.00042999,120]
[391541204,1760640641587,-17300.0,0.00042999,120]
[391541206,1760640641597,-17940.1,0.00042999,120]
[391541208,1760640641606,-250.0,0.00042999,120]
[391541210,1760640641615,-250.0,0.00042999,120]
[391541212,1760640641624,-18603.8837,0.00042999,120]
[391541214,1760640641634,-250.0,0.00042999,120]
[391541216,1760640641643,-250.0,0.00042999,120]
[391541218,1760640641652,-19292.2273969,0.00042999,120]
[391541220,1760640641661,-250.0,0.00042999,120]
[391541222,1760640641669,-250.0,0.00042999,120]
[391541224,1760640641679,-20006.03981059,0.00042999,120]
[391541226,1760640641688,-250.0,0.00042999,120]
[391541228,1760640641697,-250.0,0.00042999,120]
[391541230,1760640641706,-20746.26328358,0.00042999,120]
[391541232,1760640641715,-250.0,0.00042999,120]
[391541234,1760640641727,-250.0,0.00042999,120]
[391541236,1760640641736,-250.0,0.00042999,120]
[391541238,1760640641745,-21513.87502507,0.00042999,120]
[391541240,1760640641755,-250.0,0.00042999,120]
[391541242,1760640641764,-250.0,0.00042999,120]
[391541244,1760640641773,-22309.888401,0.00042999,120]
[391541246,1760640641783,-250.0,0.00042999,120]
[391541248,1760640641792,-250.0,0.00042999,120]
[391541250,1760640641801,-23135.35427183,0.00042999,120]
[391541252,1760640641810,-250.0,0.00042999,120]
[391541254,1760640641820,-250.0,0.00042999,120]
[391541255,1760640641829,-250.0,0.00042999,120]
[391541256,1760640641838,-250.0,0.00042999,120]
[391541257,1760640641847,-250.0,0.00042999,120]
[391541258,1760640641856,-151.0,0.00042999,120]
[391541259,1760640641865,-250.0,0.00042999,120]
[391541260,1760640641874,-151.0,0.00042999,120]
[391541261,1760640641885,-250.0,0.00042999,120]
[391541262,1760640641894,-151.0,0.00042999,120]
[391541263,1760640641904,-250.0,0.00042999,120]
[391541264,1760640641913,-151.0,0.00042999,120]
[391541265,1760640641923,-151.0,0.00042999,120]
[391541266,1760640641933,-151.0,0.00042999,120]
[391541267,1760640641942,-151.0,0.00042999,120]
[391541268,1760640641951,-151.0,0.00042999,120]
[391541269,1760640641960,-151.0,0.00042999,120]
[391541270,1760640641970,-151.0,0.00042999,120]
[391541271,1760640641980,-151.0,0.00042999,120]
[391541272,1760640641989,-151.0,0.00042999,120]
[391541273,1760640641999,-212.33504386,0.00042999,120]
[391541274,1760640642008,-151.0,0.00042999,120]
[391541275,1760640642021,-151.0,0.00042999,120]
[391541276,1760640642030,-151.0,0.00042999,120]
[391541277,1760640642040,-151.0,0.00042999,120]
[391541278,1760640642049,-151.0,0.00042999,120]
[391541279,1760640642059,-162.38071901,0.00042999,120]
[391541280,1760640642068,-248.04596635,0.00042999,120]
[391541281,1760640642078,-151.0,0.00042999,120]
[391541282,1760640642089,-151.0,0.00042999,120]
[391541283,1760640642099,-151.0,0.00042999,120]
[391541284,1760640642108,-151.0,0.00042999,120]
[391541285,1760640642118,-151.0,0.00042999,120]
[391541286,1760640642128,-151.0,0.00042999,120]
[391541287,1760640642138,-151.0,0.00042999,120]
[391541288,1760640642147,-151.0,0.00042999,120]
[391541289,1760640642157,-151.0,0.00042999,120]
[391541290,1760640642166,-151.0,0.00042999,120]
[391541291,1760640642175,-151.0,0.00042999,120]
[391541292,1760640642185,-151.0,0.00042999,120]
[391541293,1760640642194,-151.0,0.00042999,120]
[391541294,1760640642203,-151.0,0.00042999,120]
[391541295,1760640642213,-151.0,0.00042999,120]
[391541296,1760640642222,-151.0,0.00042999,120]
[391541297,1760640642234,-151.0,0.00042999,120]
[391541298,1760640642244,-151.0,0.00042999,120]
[391541299,1760640642253,-151.0,0.00042999,120]
[391541300,1760640642266,-151.0,0.00042999,120]
[391541301,1760640642276,-151.0,0.00042999,120]
[391541302,1760640642286,-151.0,0.00042999,120]
[391541303,1760640642295,-151.0,0.00042999,120]
[391541304,1760640642305,-151.0,0.00042999,120]
[391541305,1760640642314,-151.0,0.00042999,120]
[391541306,1760640642323,-151.0,0.00042999,120]
[391541307,1760640642333,-151.0,0.00042999,120]
[391541308,1760640642343,-151.0,0.00042999,120]
[391541309,1760640642358,-151.0,0.00042999,120]
[391541310,1760640642367,-151.0,0.00042999,120]
[391541311,1760640642377,-151.0,0.00042999,120]
[391541312,1760640642387,-151.0,0.00042999,120]
[391541313,1760640642403,-151.0,0.00042999,120]
[391541314,1760640642415,-47211.93590908,0.00043,120]
[391541315,1760640642424,-285.53625724,0.00043,120]
[391541316,1760640642434,-13094.53966365,0.00043,7]
[391541317,1760640642444,-151.0,0.00043,120]
[391541318,1760640642454,-151.0,0.00043,120]
[391541319,1760640642463,-151.0,0.00043,120]
[391541320,1760640642473,-279.75546,0.00043,120]
[391541321,1760640642486,-151.0,0.00043,120]
[391541322,1760640642495,-181.091385,0.00043012,60]
[391541323,1760640642505,-168.0,0.00043025,2]
[391541325,1760640642514,-755.0,0.00043164,120]
[391541326,1760640642524,-9907.51895591,0.000434,2]
[391541328,1760640642533,-981.0,0.00043437,2]
[391541330,1760640642542,-631.0,0.00043437,2]
[391541332,1760640642551,-2161.0,0.00043437,2]
[391541334,1760640642561,-28667.95220493,0.00043444,30]
[391541343,1760640642642,-41332.32711287,0.00043444,30]
[391541347,1760640642678,-161.39,0.00041324,10]
[391541349,1760640642687,-108.90124067,0.0004289,120]
[391541366,1760640643646,-1229.20054849,0.00041344,2]
[391541368,1760640643656,-1229.20054845,0.00041858,2]
[391541370,1760640643666,-51.74934633,0.0004289,120]
[391541372,1760640643675,-160.650587,0.0004289,120]
[391541373,1760640643685,-160.650587,0.0004289,120]
[391541374,1760640643694,-160.650587,0.00043,120]
[391541375,1760640643703,-160.650587,0.00043,120]
[391541376,1760640643713,-160.650587,0.00043,120]
[391541377,1760640643722,-24533.8844822,0.00043444,30]
[391541378,1760640643732,-168.0,0.00043487,2]
[391541379,1760640643742,-196230.76541248,0.000435,120]
[391541387,1760640646725,-1229.20054845,0.00042372,2]
[391541388,1760640646738,-160.650587,0.0004289,120]
[391541389,1760640646748,-160.650587,0.00043,120]
[391541390,1760640646757,-7010.55294676,0.000435,120]
[391541398,1760640808565,5000.0,0.00029012,2]
[391541399,1760640808868,1243.31493648,0.0002783,2]
[391541400,1760640808901,3756.68506352,0.0002783,2]
[391541401,1760640808932,5000.0,0.00026648,2]
[391541402,1760640809137,1243.32493648,0.00025466,2]
[391541403,1760640809165,3756.67506352,0.00025466,2]
[391541404,1760640809305,5000.0,0.00024284,2]
[391541405,1760640809482,1243.33493648,0.00023102,2]
[391541406,1760640809505,3756.66506352,0.00023102,2]
[391541407,1760640809632,3404.08200499,0.00021921,2]
[391541408,1760640830741,150.0,0.00025205,2]
[391541409,1760640831106,172.5,0.00025805,2]
[391541410,1760640831474,195.0,0.00026405,2]
[391541411,1760640831847,217.5,0.00027005,2]
[391541412,1760640832219,240.0,0.00027605,2]
[391541413,1760640832638,262.5,0.00028205,2]
[391541414,1760640833017,285.0,0.00028805,2]
[391541415,1760640833394,307.5,0.00029405,2]
[391541416,1760640864860,300.0,0.0003,2]
[391541417,1760640875348,300.0,0.0003,2]
[391541418,1760640887517,300.0,0.0003,2]
[391541419,1760640898900,300.0,0.0003,2]
[391541420,1760640903146,6970.01,0.00025,30]
[391541421,1760640903169,4529.99,0.00025,30]
[391541422,1760640903210,3000.0,0.00025,30]
[391541428,1760641135654,417.15472785,0.00025,10]
[391541429,1760641136644,417.15472785,0.00024,7]
[391541430,1760641142067,417.15472785,0.00025,10]
[391541431,1760641143083,417.15472785,0.00024,7]
[391541433,1760641324315,-962.52610902,0.00031945,120]
[391541434,1760641324349,-73.94778196,0.00031945,120]
[391541435,1760641324364,-988.39271435,0.00032822,120]
[391541436,1760641324374,-48.08117663,0.00042845,120]
[391541437,1760641324437,-432.0,0.00042845,120]
[391541438,1760641324486,-1518.91882337,0.00042845,120]
[391541439,1760641324518,-200.0,0.00043216,120]
[391541440,1760641324548,-200.0,0.00043216,120]
[391541441,1760641324585,-200.0,0.00043216,120]
[391541442,1760641324607,-432.0,0.00043372,120]
[391541443,1760641324618,-417.15472785,0.00043499,120]
[391541444,1760641324627,-151.0,0.00043499,120]
[391541445,1760641324636,-151.0,0.00043499,120]
[391541446,1760641324645,-151.0,0.00043499,120]
[391541447,1760641324655,-151.0,0.00043499,120]
[391541448,1760641324664,-65.76409552,0.00043499,120]
[391541449,1760641324678,-200.0,0.00043499,120]
[391541450,1760641324698,-200.0,0.00043499,120]
[391541451,1760641324710,-200.0,0.00043499,120]
[391541452,1760641324740,-9.86774252,0.00043499,120]
[391541453,1760641422903,498.0,0.00042829,120]
[391541454,1760641445879,150.0,0.00025205,2]
[391541455,1760641446244,172.5,0.00025805,2]
[391541456,1760641446612,195.0,0.00026405,2]
[391541457,1760641447023,217.5,0.00027005,2]
[391541458,1760641447387,66.4010886,0.00027605,2]
[391541459,1760641447413,173.5989114,0.00027605,2]
[391541460,1760641447770,262.5,0.00028205,2]
[391541461,1760641448160,285.0,0.00028805,2]
[391541462,1760641448565,307.5,0.00029405,2]
[391541463,1760641493257,102.0,0.00042827,120]
[391541464,1760641542551,205.29149132,0.00029905,2]
[391541465,1760641555144,-330.0,0.00030005,2]
[391541466,1760641555164,-196.6172886,0.00030137,2]
[391541467,1760641555185,-152.86,0.00030182,15]
[391541468,1760641555206,-1200.0,0.00030191,2]
[391541469,1760641555225,-300.0,0.00030191,2]
[391541470,1760641555244,-400.0,0.00030191,2]
[391541471,1760641555263,-300.0,0.00030191,2]
[391541472,1760641555288,-182.66698252,0.00030191,2]
[391541473,1760641623663,696.42800541,0.00030285,120]
[391541474,1760641623688,321.97111559,0.00030285,120]
[391541475,1760641629106,-350.99549908,0.00030191,2]
[391541476,1760641633103,-1066.3375184,0.00030191,2]
[391541477,1760641633123,-400.0,0.00030193,2]
[391541478,1760641633144,-400.0,0.00030193,2]
[391541479,1760641633163,-5000.0,0.00030194,3]
[391541480,1760641633185,-1000.0,0.00030241,30]
[391541481,1760641633209,-152.87,0.00030282,15]
[391541482,1760641633231,-1452.608619,0.00030452,2]
[391541483,1760641633264,-352.5,0.00030605,2]
[391541484,1760641633289,-70.16369979,0.00031205,2]
[391541485,1760641752097,-191.35172428,0.00030137,2]
[391541486,1760641752117,-304.83630021,0.00031205,2]
[391541487,1760641752136,-1434.0,0.00031375,3]
[391541488,1760641752156,-400.0,0.00031375,2]
[391541489,1760641752180,-5000.0,0.00031376,3]
[391541490,1760641752199,-257.832464,0.00031509,60]
[391541491,1760641752220,-540.858232,0.00031509,60]
[391541492,1760641752239,-257.832464,0.00031576,20]
[391541493,1760641752259,-540.858232,0.00031576,20]
[391541494,1760641752279,-387.41042723,0.000317,2]
[391541495,1760641752298,-1543.80057626,0.000317,2]
[391541496,1760641752317,-260.27063112,0.000317,2]
[391541497,1760641752336,-175.97057361,0.000317,2]
[391541498,1760641752359,-209.26945615,0.000317,2]
[391541499,1760641752378,-845.23007725,0.000317,2]
[391541500,1760641752398,-206.25203997,0.000317,2]
[391541501,1760641752421,-256.47677601,0.000317,2]
[391541502,1760641752441,-194.79975765,0.000317,2]
[391541503,1760641752462,-397.5,0.00031805,2]
[391541504,1760641752482,-257.832464,0.00032,10]
[391541505,1760641752502,-540.858232,0.00032,10]
[391541506,1760641752520,-422.24383392,0.00032017,5]
[391541507,1760641752540,-387.41042723,0.000321,2]
[391541508,1760641752559,-1543.80057626,0.000321,2]
[391541509,1760641752578,-260.27063112,0.000321,2]
[391541510,1760641752599,-209.26945615,0.000321,2]
[391541511,1760641752619,-845.23007725,0.000321,2]
[391541512,1760641752638,-256.47677601,0.000321,2]
[391541513,1760641752657,-387.41042723,0.000324,2]
[391541514,1760641752680,-1543.80057626,0.000324,2]
[391541515,1760641752700,-260.27063112,0.000324,2]
[391541516,1760641752718,-209.26945615,0.000324,2]
[391541517,1760641752740,-845.23007725,0.000324,2]
[391541518,1760641752759,-256.47677601,0.000324,2]
[391541519,1760641752777,-520.0,0.00032533,3]
[391541520,1760641752796,-500.0,0.00032535,3]
[391541521,1760641752816,-417.15472785,0.00032558,3]
[391541522,1760641752837,-5000.0,0.00032558,3]
[391541523,1760641752857,-356.55115888,0.00032562,5]
[391541524,1760641752878,-1200.0,0.00032671,3]
[391541525,1760641752896,-500.0,0.00032683,5]
[391541526,1760641752920,-500.0,0.00032683,5]
[391541527,1760641752939,-387.41042723,0.000327,2]
[391541528,1760641752958,-1543.80057626,0.000327,2]
[391541529,1760641752978,-260.27063112,0.000327,2]
[391541530,1760641752998,-209.26945615,0.000327,2]
[391541531,1760641753020,-763.69261835,0.000327,2]
[391541532,1760641764088,417.15472785,0.0003,2]
[391541533,1760641764608,417.15472785,0.00031945,120]
[391541534,1760641792138,6622.87680744,0.0003,2]
[391541535,1760641792711,101.37130699,0.00031945,120]
[391541536,1760641792735,935.10258399,0.00031945,120]
[391541537,1760641803846,417.15472785,0.00025,10]
[391541563,1760641831754,-360.0,0.00031492,2]
[391541565,1760641831765,-170.98451734,0.000317,2]
[391541567,1760641831775,-424.40060786,0.000317,2]
[391541569,1760641831785,-193.70521361,0.000317,2]
[391541571,1760641831795,-183.12602,0.000317,2]
[391541573,1760641831805,-260.27063112,0.000317,2]
[391541575,1760641831814,-188.34251053,0.000317,2]
[391541577,1760641831824,-185.35350723,0.000317,2]
[391541579,1760641831834,-155.4203357,0.00031987,2]
[391541581,1760641831844,-170.98451734,0.000321,2]
[391541583,1760641831854,-424.40060786,0.000321,2]
[391541585,1760641831863,-193.70521361,0.000321,2]
[391541587,1760641831873,-183.12602,0.000321,2]
[391541589,1760641831883,-188.34251053,0.000321,2]
[391541591,1760641831892,-185.35350723,0.000321,2]
[391541593,1760641831902,-170.98451734,0.000324,2]
[391541595,1760641831912,-424.40060786,0.000324,2]
[391541597,1760641831921,-185.35350723,0.000324,2]
[391541598,1760641831930,-360.0,0.00032492,2]
[391541600,1760641831940,-424.40060786,0.000327,2]
[391541602,1760641831950,-185.35350723,0.000327,2]
[391541604,1760641831959,-424.40060786,0.00033,2]
[391541606,1760641831969,-185.35350723,0.00033,2]
[391541608,1760641831981,-25.51286857,0.00033001,120]
[391541891,1760641837633,-670.91513684,0.00033001,120]
[391541892,1760641837643,-356.796257,0.00033001,10]
[391541893,1760641837653,-400.0,0.00033158,2]
[391541894,1760641837662,-500.0,0.00033159,7]
[391541895,1760641837671,-257.832464,0.00033444,2]
[391541896,1760641837681,-540.858232,0.00033444,2]
[391541897,1760641837691,-257.832464,0.00033616,5]
[391541898,1760641837701,-540.858232,0.00033616,5]
[391541899,1760641837710,-41.13632079,0.0003374,4]
[391541901,1760641837729,-4958.86367921,0.0003374,4]
[391541902,1760641837743,-300.0,0.00034101,30]
[391541903,1760641837752,-300.0,0.00034101,30]
[391541904,1760641837762,-300.0,0.00034101,30]
[391541905,1760641837773,-300.0,0.00034101,30]
[391541908,1760641837784,-300.0,0.00034101,30]
[391541910,1760641837794,-300.0,0.00034101,30]
[391541911,1760641837804,-300.0,0.00034101,30]
[391541912,1760641837814,-300.0,0.00034101,30]
[391541913,1760641837823,-300.0,0.00034101,30]
[391541914,1760641837833,-300.0,0.00034101,30]
[391541916,1760641837842,-300.0,0.00034101,30]
[391541917,1760641837852,-300.0,0.00034101,30]
[391541918,1760641837861,-300.0,0.00034101,30]
[391541919,1760641837871,-300.0,0.00034101,30]
[391541920,1760641837881,-300.0,0.00034101,30]
[391541921,1760641837891,-500.0,0.000342,5]
[391541922,1760641837902,-500.0,0.000342,5]
[391541923,1760641837911,-3156.05,0.0003439,2]
[391541924,1760641837921,-500.0,0.00034748,5]
[391541925,1760641837931,-1000.0,0.00034748,5]
[391541926,1760641837940,-600.0,0.00034782,30]
[391541927,1760641837950,-5000.0,0.00034922,4]
[391541928,1760641837959,-154.24384683,0.00035233,2]
[391541929,1760641837968,-1500.0,0.00035296,5]
[391541930,1760641837978,-1018.399121,0.00035333,120]
[391541931,1760641837990,-560.0,0.00035621,2]
[391541932,1760641838000,-967.5967823,0.00035844,5]
[391541933,1760641838010,-236.42722827,0.00035943,2]
[391541934,1760641838019,-257.832464,0.00036182,20]
[391541935,1760641838030,-540.858232,0.00036182,20]
[391541936,1760641838041,-257.832464,0.00036631,10]
[391541937,1760641838051,-540.858232,0.00036631,10]
[391541938,1760641838061,-257.832464,0.00036678,60]
[391541939,1760641838071,-540.858232,0.00036678,60]
[391541940,1760641838081,-174.8478777,0.00037458,2]
[391541941,1760641838091,-257.832464,0.00037712,5]
[391541942,1760641838101,-540.858232,0.00037712,5]
[391541943,1760641838111,-160.0,0.0003775,2]
[391541944,1760641838120,-257.832464,0.0003801,2]
[391541945,1760641838130,-540.858232,0.0003801,2]
[391541946,1760641838139,-720.0,0.0003826,30]
[391541947,1760641838148,-783.0,0.00038266,2]
[391541948,1760641838158,-200.0,0.00038298,2]
[391541949,1760641838168,-257.832464,0.0003868,15]
[391541950,1760641838178,-540.858232,0.0003868,15]
[391541951,1760641838187,-301.29760586,0.00038725,2]
[391541952,1760641838196,-344.34012098,0.00038725,2]
[391541953,1760641838206,-537.4934076,0.00038725,2]
[391541954,1760641838216,-280.67935215,0.00038725,2]
[391541955,1760641838225,-505.22283387,0.00038725,2]
[391541956,1760641838237,-898.17392688,0.00038725,2]
[391541957,1760641838246,-1403.39676074,0.00038725,2]
[391541958,1760641838256,-2018.87044414,0.00038725,2]
[391541959,1760641838266,-308.78336639,0.00039928,2]
[391541960,1760641838275,-154.24384677,0.00040085,28]
[391541961,1760641838284,-6312.11,0.00040122,2]
[391541962,1760641838294,-1018.399121,0.0004038,120]
[391541963,1760641838303,-257.832464,0.00040788,20]
[391541964,1760641838313,-540.858232,0.00040788,20]
[391541965,1760641838323,-439.601086,0.00040795,2]
[391541966,1760641838333,-290.38403517,0.00040795,2]